Workbook

Sheet 월별 참여 현황
B2: ㅇ 월별 의무감축용량(MW)
B3: 연 | D3: 2020 | E3: 2021 | F3: 2021 | G3: 2021 | H3: 2021 | I3: 2021 | J3: 2021 | K3: 2021 | L3: 2021 | M3: 2021 | N3: 2021 | O3: 2021
B4: 월 | D4: 12 | E4: 1 | F4: 2 | G4: 3 | H4: 4 | I4: 5 | J4: 6 | K4: 7 | L4: 8 | M4: 9 | N4: 10 | O4: 11
B5: 표 준 | C5: 수도권 | D5: 576.353 | E5: 576.353 | F5: 576.353 | G5: 576.353 | H5: 576.353 | I5: 576.353 | J5: 589.189 | K5: 589.189 | L5: 574.337 | M5: 574.337 | N5: 574.337 | O5: 574.337
C6: 비수도권 | D6: 3200.458 | E6: 3200.458 | F6: 3200.458 | G6: 3200.458 | H6: 3200.458 | I6: 3200.458 | J6: 3342.937 | K6: 3342.937 | L6: 3342.937 | M6: 3342.937 | N6: 3342.937 | O6: 3342.937
B7: 중소형 | C7: 수도권 | D7: 254.587 | E7: 254.587 | F7: 254.587 | G7: 254.587 | H7: 254.587 | I7: 254.587 | J7: 264.526 | K7: 264.526 | L7: 256.49 | M7: 256.49 | N7: 256.49 | O7: 256.49
C8: 비수도권 | D8: 467.946 | E8: 467.946 | F8: 464.343 | G8: 464.343 | H8: 464.343 | I8: 464.343 | J8: 498.673 | K8: 498.673 | L8: 482.45 | M8: 482.45 | N8: 482.45 | O8: 482.45
B9: 제 주 | D9: - | E9: - | F9: - | G9: - | H9: - | I9: - | J9: - | K9: - | L9: - | M9: - | N9: - | O9: -
B10: 합 계 | D10: 4499.344 | E10: 4499.344 | F10: 4495.741 | G10: 4495.741 | H10: 4495.741 | I10: 4495.741 | J10: 4695.325 | K10: 4695.325 | L10: 4656.214 | M10: 4656.214 | N10: 4656.214 | O10: 4656.214
B12: 연 | D12: 2021 | E12: 2022 | F12: 2022 | G12: 2022 | H12: 2022 | I12: 2022 | J12: 2022 | K12: 2022 | L12: 2022 | M12: 2022 | N12: 2022 | O12: 2022
B13: 월 | D13: 12 | E13: 1 | F13: 2 | G13: 3 | H13: 4 | I13: 5 | J13: 6 | K13: 7 | L13: 8 | M13: 9 | N13: 10 | O13: 11
B14: 표 준 | C14: 수도권 | D14: 589.581 | E14: 589.581 | F14: 589.581 | G14: 589.581 | H14: 589.581 | I14: 589.581 | J14: 602.616 | K14: 602.616 | L14: 586.616 | M14: 586.616 | N14: 586.616 | O14: 586.616
C15: 비수도권 | D15: 3232.646 | E15: 3232.646 | F15: 3232.646 | G15: 3232.646 | H15: 3232.646 | I15: 3232.646 | J15: 3551.56 | K15: 3551.56 | L15: 3551.56 | M15: 3551.56 | N15: 3551.56 | O15: 3551.56
B16: 중소형 | C16: 수도권 | D16: 261.369 | E16: 261.369 | F16: 261.369 | G16: 261.369 | H16: 261.369 | I16: 261.369 | J16: 269.825 | K16: 269.825 | L16: 269.046 | M16: 269.046 | N16: 269.046 | O16: 269.046
C17: 비수도권 | D17: 469.338 | E17: 469.338 | F17: 466.159 | G17: 466.159 | H17: 466.159 | I17: 466.159 | J17: 499.537 | K17: 499.537 | L17: 489.666 | M17: 489.666 | N17: 489.666 | O17: 489.666
B18: 제 주 | D18: - | E18: - | F18: - | G18: - | H18: - | I18: - | J18: - | K18: - | L18: - | M18: - | N18: - | O18: -
B19: 합 계 | D19: 4552.934 | E19: 4552.934 | F19: 4549.755 | G19: 4549.755 | H19: 4549.755 | I19: 4549.755 | J19: 4923.538 | K19: 4923.538 | L19: 4896.888 | M19: 4896.888 | N19: 4896.888 | O19: 4896.888
B21: 연 | D21: 2022 | E21: 2023 | F21: 2023 | G21: 2023 | H21: 2023 | I21: 2023 | J21: 2023 | K21: 2023 | L21: 2023 | M21: 2023 | N21: 2023 | O21: 2023
B22: 월 | D22: 12 | E22: 1 | F22: 2 | G22: 3 | H22: 4 | I22: 5 | J22: 6 | K22: 7 | L22: 8 | M22: 9 | N22: 10 | O22: 11
B23: 표 준 | C23: 수도권 | D23: 573.48 | E23: 573.48 | F23: 573.48 | G23: 573.48 | H23: 573.48
C24: 비수도권 | D24: 3375.338 | E24: 3375.338 | F24: 3375.338 | G24: 3375.338 | H24: 3375.338
B25: 중소형 | C25: 수도권 | D25: 184.615 | E25: 184.615 | F25: 179.997 | G25: 179.997 | H25: 179.997
C26: 비수도권 | D26: 250.822 | E26: 250.822 | F26: 250.822 | G26: 250.822 | H26: 250.822
B27: 제 주 | D27: 37.217 | E27: 37.217 | F27: 37.217 | G27: 37.217 | H27: 37.217
B28: 합 계 | D28: 4421.472 | E28: 4421.472 | F28: 4416.854 | G28: 4416.854 | H28: 4416.854
B30: ㅇ 월별 수요자원 수(개)
B31: 연 | D31: 2020 | E31: 2021 | F31: 2021 | G31: 2021 | H31: 2021 | I31: 2021 | J31: 2021 | K31: 2021 | L31: 2021 | M31: 2021 | N31: 2021 | O31: 2021
B32: 월 | D32: 12 | E32: 1 | F32: 2 | G32: 3 | H32: 4 | I32: 5 | J32: 6 | K32: 7 | L32: 8 | M32: 9 | N32: 10 | O32: 11
B33: 표 준 | C33: 수도권 | D33: 11 | E33: 11 | F33: 11 | G33: 11 | H33: 11 | I33: 11 | J33: 12 | K33: 12 | L33: 12 | M33: 12 | N33: 12 | O33: 12
C34: 비수도권 | D34: 19 | E34: 19 | F34: 19 | G34: 19 | H34: 19 | I34: 19 | J34: 22 | K34: 22 | L34: 22 | M34: 22 | N34: 22 | O34: 22
B35: 중소형 | C35: 수도권 | D35: 20 | E35: 20 | F35: 20 | G35: 20 | H35: 20 | I35: 20 | J35: 23 | K35: 23 | L35: 22 | M35: 22 | N35: 22 | O35: 22
C36: 비수도권 | D36: 35 | E36: 35 | F36: 35 | G36: 35 | H36: 35 | I36: 35 | J36: 40 | K36: 40 | L36: 39 | M36: 39 | N36: 39 | O36: 39
B37: 제 주 | D37: - | E37: - | F37: - | G37: - | H37: - | I37: - | J37: - | K37: - | L37: - | M37: - | N37: - | O37: -
B38: 합 계 | D38: 85 | E38: 85 | F38: 85 | G38: 85 | H38: 85 | I38: 85 | J38: 97 | K38: 97 | L38: 95 | M38: 95 | N38: 95 | O38: 95
B40: 연 | D40: 2021 | E40: 2022 | F40: 2022 | G40: 2022 | H40: 2022 | I40: 2022 | J40: 2022 | K40: 2022 | L40: 2022 | M40: 2022 | N40: 2022 | O40: 2022
B41: 월 | D41: 12 | E41: 1 | F41: 2 | G41: 3 | H41: 4 | I41: 5 | J41: 6 | K41: 7 | L41: 8 | M41: 9 | N41: 10 | O41: 11
B42: 표 준 | C42: 수도권 | D42: 12 | E42: 12 | F42: 12 | G42: 12 | H42: 12 | I42: 12 | J42: 13 | K42: 13 | L42: 12 | M42: 12 | N42: 12 | O42: 12
C43: 비수도권 | D43: 20 | E43: 20 | F43: 20 | G43: 20 | H43: 20 | I43: 20 | J43: 24 | K43: 24 | L43: 24 | M43: 24 | N43: 24 | O43: 24
B44: 중소형 | C44: 수도권 | D44: 21 | E44: 21 | F44: 21 | G44: 21 | H44: 21 | I44: 21 | J44: 23 | K44: 23 | L44: 23 | M44: 23 | N44: 23 | O44: 23
C45: 비수도권 | D45: 32 | E45: 32 | F45: 32 | G45: 32 | H45: 32 | I45: 32 | J45: 38 | K45: 38 | L45: 37 | M45: 37 | N45: 37 | O45: 37
B46: 제 주 | D46: - | E46: - | F46: - | G46: - | H46: - | I46: - | J46: - | K46: - | L46: - | M46: - | N46: - | O46: -
B47: 합 계 | D47: 85 | E47: 85 | F47: 85 | G47: 85 | H47: 85 | I47: 85 | J47: 98 | K47: 98 | L47: 96 | M47: 96 | N47: 96 | O47: 96
B49: 연 | D49: 2022 | E49: 2023 | F49: 2023 | G49: 2023 | H49: 2023 | I49: 2023 | J49: 2023 | K49: 2023 | L49: 2023 | M49: 2023 | N49: 2023 | O49: 2023
B50: 월 | D50: 12 | E50: 1 | F50: 2 | G50: 3 | H50: 4 | I50: 5 | J50: 6 | K50: 7 | L50: 8 | M50: 9 | N50: 10 | O50: 11
B51: 표 준 | C51: 수도권 | D51: 11 | E51: 11 | F51: 11 | G51: 11 | H51: 11
C52: 비수도권 | D52: 21 | E52: 21 | F52: 21 | G52: 21 | H52: 21
B53: 중소형 | C53: 수도권 | D53: 17 | E53: 17 | F53: 17 | G53: 17 | H53: 17
C54: 비수도권 | D54: 18 | E54: 18 | F54: 18 | G54: 18 | H54: 18
B55: 제 주 | D55: 5 | E55: 5 | F55: 5 | G55: 5 | H55: 5
B56: 합 계 | D56: 72 | E56: 72 | F56: 72 | G56: 72 | H56: 72
B58: ㅇ 월별 참여고객 수(개)
B59: 연 | D59: 2020 | E59: 2021 | F59: 2021 | G59: 2021 | H59: 2021 | I59: 2021 | J59: 2021 | K59: 2021 | L59: 2021 | M59: 2021 | N59: 2021 | O59: 2021
B60: 월 | D60: 12 | E60: 1 | F60: 2 | G60: 3 | H60: 4 | I60: 5 | J60: 6 | K60: 7 | L60: 8 | M60: 9 | N60: 10 | O60: 11
B61: 표 준 | C61: 수도권 | D61: 526 | E61: 526 | F61: 526 | G61: 532 | H61: 532 | I61: 532 | J61: 543 | K61: 543 | L61: 543 | M61: 542 | N61: 542 | O61: 542
C62: 비수도권 | D62: 1238 | E62: 1238 | F62: 1238 | G62: 1267 | H62: 1267 | I62: 1267 | J62: 1362 | K62: 1362 | L62: 1362 | M62: 1357 | N62: 1357 | O62: 1357
B63: 중소형 | C63: 수도권 | D63: 942 | E63: 942 | F63: 942 | G63: 940 | H63: 940 | I63: 940 | J63: 978 | K63: 978 | L63: 952 | M63: 949 | N63: 949 | O63: 949
C64: 비수도권 | D64: 2194 | E64: 2194 | F64: 2194 | G64: 2186 | H64: 2186 | I64: 2186 | J64: 2307 | K64: 2307 | L64: 2297 | M64: 2297 | N64: 2297 | O64: 2297
B65: 제 주 | D65: - | E65: - | F65: - | G65: - | H65: - | I65: - | J65: - | K65: - | L65: - | M65: - | N65: - | O65: -
B66: 합 계 | D66: 4900 | E66: 4900 | F66: 4900 | G66: 4925 | H66: 4925 | I66: 4925 | J66: 5190 | K66: 5190 | L66: 5154 | M66: 5145 | N66: 5145 | O66: 5145
B68: 연 | D68: 2021 | E68: 2022 | F68: 2022 | G68: 2022 | H68: 2022 | I68: 2022 | J68: 2022 | K68: 2022 | L68: 2022 | M68: 2022 | N68: 2022 | O68: 2022
B69: 월 | D69: 12 | E69: 1 | F69: 2 | G69: 3 | H69: 4 | I69: 5 | J69: 6 | K69: 7 | L69: 8 | M69: 9 | N69: 10 | O69: 11
B70: 표 준 | C70: 수도권 | D70: 517 | E70: 517 | F70: 517 | G70: 524 | H70: 524 | I70: 524 | J70: 550 | K70: 550 | L70: 524 | M70: 520 | N70: 520 | O70: 520
C71: 비수도권 | D71: 1272 | E71: 1272 | F71: 1272 | G71: 1291 | H71: 1291 | I71: 1291 | J71: 1329 | K71: 1329 | L71: 1329 | M71: 1322 | N71: 1322 | O71: 1322
B72: 중소형 | C72: 수도권 | D72: 969 | E72: 969 | F72: 969 | G72: 963 | H72: 963 | I72: 963 | J72: 995 | K72: 995 | L72: 995 | M72: 1001 | N72: 1001 | O72: 1001
C73: 비수도권 | D73: 2276 | E73: 2276 | F73: 2276 | G73: 2243 | H73: 2243 | I73: 2243 | J73: 2438 | K73: 2438 | L73: 2422 | M73: 2396 | N73: 2396 | O73: 2396
B74: 제 주 | D74: - | E74: - | F74: - | G74: - | H74: - | I74: - | J74: - | K74: - | L74: - | M74: - | N74: - | O74: -
B75: 합 계 | D75: 5034 | E75: 5034 | F75: 5034 | G75: 5021 | H75: 5021 | I75: 5021 | J75: 5312 | K75: 5312 | L75: 5270 | M75: 5239 | N75: 5239 | O75: 5239
B77: 연 | D77: 2022 | E77: 2023 | F77: 2023 | G77: 2023 | H77: 2023 | I77: 2023 | J77: 2023 | K77: 2023 | L77: 2023 | M77: 2023 | N77: 2023 | O77: 2023
B78: 월 | D78: 12 | E78: 1 | F78: 2 | G78: 3 | H78: 4 | I78: 5 | J78: 6 | K78: 7 | L78: 8 | M78: 9 | N78: 10 | O78: 11
B79: 표 준 | C79: 수도권 | D79: 504 | E79: 504 | F79: 504 | G79: 503 | H79: 503
C80: 비수도권 | D80: 1306 | E80: 1306 | F80: 1306 | G80: 1405 | H80: 1405
B81: 중소형 | C81: 수도권 | D81: 620 | E81: 620 | F81: 620 | G81: 618 | H81: 618
C82: 비수도권 | D82: 1204 | E82: 1204 | F82: 1204 | G82: 1157 | H82: 1157
B83: 제 주 | D83: 128 | E83: 128 | F83: 128 | G83: 130 | H83: 130
B84: 합 계 | D84: 3762 | E84: 3762 | F84: 3762 | G84: 3813 | H84: 3813

Sheet 월별 가격지표 현황
B2: ㅇ 월별 순편익가격(NBTP) 및 계통한계가격(SMP)(원/kWh)
B3: 연 | C3: 2021 | D3: 2021 | E3: 2021 | F3: 2021 | G3: 2021 | H3: 2021 | I3: 2021 | J3: 2021 | K3: 2021 | L3: 2021 | M3: 2021 | N3: 2021
B4: 월 | C4: 1 | D4: 2 | E4: 3 | F4: 4 | G4: 5 | H4: 6 | I4: 7 | J4: 8 | K4: 9 | L4: 10 | M4: 11 | N4: 12
B5: 육지NBTP | C5: 71.04 | D5: 77.11 | E5: 85.29 | F5: 74.51 | G5: 80.56 | H5: 84.34 | I5: 89.06 | J5: 97.11 | K5: 103.77 | L5: 108.35 | M5: 134.15 | N5: 148.01
B6: 제주NBTP | C6: - | D6: - | E6: - | F6: - | G6: - | H6: - | I6: - | J6: - | K6: - | L6: - | M6: - | N6: -
B7: 육지SMP | C7: 70.47 | D7: 75.25 | E7: 83.78 | F7: 75.97 | G7: 78.93 | H7: 82.72 | I7: 87.04 | J7: 93.41 | K7: 98.21 | L7: 107.53 | M7: 126.83 | N7: 142.46
B8: 제주SMP | C8: 87.75 | D8: 92.84 | E8: 124.79 | F8: 111 | G8: 95.39 | H8: 121.49 | I8: 133.68 | J8: 153.23 | K8: 149.31 | L8: 130.14 | M8: 149.77 | N8: 175.72
B10: 연 | C10: 2022 | D10: 2022 | E10: 2022 | F10: 2022 | G10: 2022 | H10: 2022 | I10: 2022 | J10: 2022 | K10: 2022 | L10: 2022 | M10: 2022 | N10: 2022
B11: 월 | C11: 1 | D11: 2 | E11: 3 | F11: 4 | G11: 5 | H11: 6 | I11: 7 | J11: 8 | K11: 9 | L11: 10 | M11: 11 | N11: 12
B12: 육지NBTP | C12: 166.08 | D12: 216.78 | E12: 197.17 | F12: 210.88 | G12: 141.91 | H12: 134.96 | I12: 161.98 | J12: 217.71 | K12: 252.06 | L12: 270.62 | M12: 263.69 | N12: 279.9
B13: 제주NBTP | C13: - | D13: - | E13: - | F13: - | G13: - | H13: - | I13: - | J13: - | K13: - | L13: - | M13: - | N13: 371.96
B14: 육지SMP | C14: 153.82 | D14: 196.93 | E14: 192.34 | F14: 201.58 | G14: 139.06 | H14: 128.84 | I14: 150.6 | J14: 196.02 | K14: 233.37 | L14: 251.61 | M14: 242.17 | N14: 267.55
B15: 제주SMP | C15: 206.86 | D15: 229.85 | E15: 229.05 | F15: 250.33 | G15: 263.73 | H15: 214.32 | I15: 261.31 | J15: 340.91 | K15: 238.44 | L15: 255.03 | M15: 243.97 | N15: 275.15
B17: 연 | C17: 2023 | D17: 2023 | E17: 2023 | F17: 2023 | G17: 2023 | H17: 2023 | I17: 2023 | J17: 2023 | K17: 2023 | L17: 2023 | M17: 2023 | N17: 2023
B18: 월 | C18: 1 | D18: 2 | E18: 3 | F18: 4 | G18: 5 | H18: 6 | I18: 7 | J18: 8 | K18: 9 | L18: 10 | M18: 11 | N18: 12
B19: 육지NBTP | C19: 262.73
B20: 제주NBTP | C20: 346.7
B21: 육지SMP | C21: 240.73
B22: 제주SMP | C22: 247.55
B24: ㅇ 월별 기본정산금 단가
B25: 연 | C25: 2021 | D25: 2021 | E25: 2021 | F25: 2021 | G25: 2021 | H25: 2021 | I25: 2021 | J25: 2021 | K25: 2021 | L25: 2021 | M25: 2021 | N25: 2021
B26: 월 | C26: 1 | D26: 2 | E26: 3 | F26: 4 | G26: 5 | H26: 6 | I26: 7 | J26: 8 | K26: 9 | L26: 10 | M26: 11 | N26: 12
B27: 표준DR(원/kW-월) | C27: 4750.8 | D27: 2863.62 | E27: 853.6 | F27: 502.92 | G27: 421.8 | H27: 997.04 | I27: 3862.98 | J27: 4810.26 | K27: 1502.14 | L27: 463.79 | M27: 1671.34 | N27: 5132.68
B28: 중소형DR(원/kW-월) | C28: 5807.6 | D28: 3500.82 | E28: 1043.24 | F28: 613.8 | G28: 514.9 | H28: 1218.58 | I28: 4725.16 | J28: 5883.15 | K28: 1837.68 | L28: 566.39 | M28: 2044.9 | N28: 6277.85
B29: 국민DR(원/kWh) | C29: 56347.39 | D29: 56347.39 | E29: 56347.39 | F29: 56347.39 | G29: 56347.39 | H29: 56347.39 | I29: 57315.32 | J29: 57315.32 | K29: 57315.32 | L29: 57335.15 | M29: 57335.15 | N29: 59644.35
B30: 주파수DR(원/kW-10m) | C30: 33772.5 | D30: 33772.5 | E30: 33772.5 | F30: 33772.5 | G30: 33772.5 | H30: 33772.5 | I30: 33676.11 | J30: 33676.11 | K30: 33676.11 | L30: 33698.07 | M30: 33698.07 | N30: 31108.95
B32: 연 | C32: 2022 | D32: 2022 | E32: 2022 | F32: 2022 | G32: 2022 | H32: 2022 | I32: 2022 | J32: 2022 | K32: 2022 | L32: 2022 | M32: 2022 | N32: 2022
B33: 월 | C33: 1 | D33: 2 | E33: 3 | F33: 4 | G33: 5 | H33: 6 | I33: 7 | J33: 8 | K33: 9 | L33: 10 | M33: 11 | N33: 12
B34: 표준/중소형DR(원/kW-월) | C34: 4599 | D34: 2723.4 | E34: 748.02 | F34: 473.76 | G34: 459.9 | H34: 941.6 | I34: 4355.4 | J34: 5541.58 | K34: 1900.2 | L34: 487.92 | M34: 1246.08 | N34: 4343.9
B35: 제주DR(원/kW-월) | C35: - | D35: - | E35: - | F35: - | G35: - | H35: - | I35: - | J35: - | K35: - | L35: - | M35: - | N35: 4834.5
B36: 국민DR(육지)(원/kWh) | C36: 58632.58 | D36: 58632.58 | E36: 58632.58 | F36: 58632.58 | G36: 58632.58 | H36: 58632.58 | I36: 63502.27 | J36: 63502.27 | K36: 63502.27 | L36: 63502.27 | M36: 63502.27 | N36: 63115.51
B37: 국민DR(제주)(원/kWh) | C37: - | D37: - | E37: - | F37: - | G37: - | H37: - | I37: - | J37: - | K37: - | L37: - | M37: - | N37: 64575.87
B38: 주파수DR(원/kW-10m) | C38: 31108.95 | D38: 31108.95 | E38: 31108.95 | F38: 31108.95 | G38: 31108.95 | H38: 31108.95 | I38: 32485.95 | J38: 32485.95 | K38: 32485.95 | L38: 32485.95 | M38: 32485.95 | N38: 33211.35
B40: 연 | C40: 2023 | D40: 2023 | E40: 2023 | F40: 2023 | G40: 2023 | H40: 2023 | I40: 2023 | J40: 2023 | K40: 2023 | L40: 2023 | M40: 2023 | N40: 2023
B41: 월 | C41: 1 | D41: 2 | E41: 3 | F41: 4 | G41: 5 | H41: 6 | I41: 7 | J41: 8 | K41: 9 | L41: 10 | M41: 11 | N41: 12
B42: 표준/중소형DR(원/kW-월) | C42: 2943
B43: 제주DR(원/kW-월) | C43: 3583.4
B44: 국민DR(육지)(원/kWh) | C44: 66055.85
B45: 국민DR(제주)(원/kWh) | C45: 70847.34
B46: 주파수DR(원/kW-10m) | C46: 33211.35

Sheet 월별 감축 실적
B2: ㅇ 신뢰성DR 감축실적
B3: 차수 | C3: 연 | D3: 월 | E3: 일 | F3: 감축요청량(MWh) | G3: 감축이행량(MWh) | H3: 이행률(%) | I3: 비 고
B4: 7 | C4: 2020 | D4: 12 | E4: 9 | F4: 4499.344 | G4: 5024.906 | H4: =G4/F4*100 -> 111.6808584 | I4: 감축시험
B5: 7 | C5: 2020 | D5: 12 | E5: 22 | F5: 95.762 | G5: 102.341 | H5: =G5/F5*100 -> 106.8701573 | I5: 감축시험
B6: 7 | C6: 2021 | D6: 6 | E6: 8 | F6: 4695.325 | G6: 5331.149 | H6: 113.5416398 | I6: 감축시험
B7: 7 | C7: 2021 | D7: 6 | E7: 22 | F7: 451.2 | G7: 418.405 | H7: 92.73160461 | I7: 감축시험
B8: 8 | C8: 2021 | D8: 12 | E8: 7 | F8: 4552.934 | G8: 5048.567 | H8: 110.8860133 | I8: 감축시험
B9: 8 | C9: 2021 | D9: 12 | E9: 20 | F9: 33.602 | G9: 30.917 | H9: 92.0094042 | I9: 감축시험
B10: 8 | C10: 2021 | D10: 12 | E10: 21 | F10: 422.03 | G10: 456.187 | H10: 108.0935005 | I10: 감축시험
B11: 8 | C11: 2022 | D11: 6 | E11: 8 | F11: 4923.538 | G11: 5748.986 | H11: 116.7653423 | I11: 감축시험
B12: 8 | C12: 2022 | D12: 6 | E12: 22 | F12: 359.243 | G12: 348.405 | H12: 96.98310058 | I12: 감축시험
B13: 9 | C13: 2022 | D13: 12 | E13: 2 | F13: 4421.472 | G13: 4974.637 | H13: 112.5108787 | I13: 감축시험
B14: 9 | C14: 2022 | D14: 12 | E14: 19 | F14: 221.728 | G14: 246.422 | H14: 111.1370688 | I14: 감축시험
B17: ㅇ 자발적DR 감축실적
B18: 차수 | C18: 7 | D18: 7 | E18: 7 | F18: 7 | G18: 7 | H18: 7 | I18: 7 | J18: 7 | K18: 7 | L18: 7 | M18: 7 | N18: 7 | O18: 7
B19: 연 | C19: 2020 | D19: 2021 | E19: 2021 | F19: 2021 | G19: 2021 | H19: 2021 | I19: 2021 | J19: 2021 | K19: 2021 | L19: 2021 | M19: 2021 | N19: 2021 | O19: 합 계
B20: 월 | C20: 12 | D20: 1 | E20: 2 | F20: 3 | G20: 4 | H20: 5 | I20: 6 | J20: 7 | K20: 8 | L20: 9 | M20: 10 | N20: 11
B21: 입찰량(MWh) | C21: 82604 | D21: 40950 | E21: 44624 | F21: 55559 | G21: 43829 | H21: 55307 | I21: 65664 | J21: 64552 | K21: 102946 | L21: 69340 | M21: 66018 | N21: 54854 | O21: =SUM(C21:N21) -> 746247
B22: 낙찰량(MWh) | C22: 34971.713 | D22: 15913.058 | E22: 12225.572 | F22: 12938.3 | G22: 27391 | H22: 31050 | I22: 33940 | J22: 34889.7 | K22: 27622 | L22: 33419 | M22: 39140 | N22: 11046 | O22: =SUM(C22:N22) -> 314546.343
B23: 감축량(MWh) | C23: 53201.569 | D23: 22477.291 | E23: 19306.68 | F23: 21333.312 | G23: 47427.513 | H23: 51359.423 | I23: 52682.112 | J23: 55036.646 | K23: 40413.181 | L23: 53375.541 | M23: 59501.409 | N23: 18100.87 | O23: 494215.547
B24: 이행률(%) | C24: =C23/C22*100 -> 152.1274322 | D24: =D23/D22*100 -> 141.2506069 | E24: 157.9204638 | F24: 164.8849694 | G24: 173.1499872 | H24: 165.4087697 | I24: 155.2213082 | J24: 157.7446811 | K24: 146.3079466 | L24: 159.7161525 | M24: 152.0219954 | N24: 163.868097 | O24: 157.1201058
B26: 차수 | C26: 8 | D26: 8 | E26: 8 | F26: 8 | G26: 8 | H26: 8 | I26: 8 | J26: 8 | K26: 8 | L26: 8 | M26: 8 | N26: 8 | O26: 8
B27: 연 | C27: 2021 | D27: 2022 | E27: 2022 | F27: 2022 | G27: 2022 | H27: 2022 | I27: 2022 | J27: 2022 | K27: 2022 | L27: 2022 | M27: 2022 | N27: 2022 | O27: 합 계
B28: 월 | C28: 12 | D28: 1 | E28: 2 | F28: 3 | G28: 4 | H28: 5 | I28: 6 | J28: 7 | K28: 8 | L28: 9 | M28: 10 | N28: 11
B29: 입찰량(MWh) | C29: 73411 | D29: 41737 | E29: 66762 | F29: 58690 | G29: 50563 | H29: 76949 | I29: 84205 | J29: 82595 | K29: 139798 | L29: 74604.7 | M29: 74325.8 | N29: 70575.4 | O29: =SUM(C29:N29) -> 894215.9
B30: 낙찰량(MWh) | C30: 18870 | D30: 6402.4 | E30: 11270 | F30: 12535 | G30: 5436 | H30: 26970 | I30: 21185 | J30: 8582 | K30: 42789 | L30: 9290.708 | M30: 8003.157 | N30: 4989.405 | O30: =SUM(C30:N30) -> 176322.67
B31: 감축량(MWh) | C31: 29282.24 | D31: 9215.756 | E31: 16857.351 | F31: 22307.524 | G31: 9641.667 | H31: 43134.995 | I31: 33865.103 | J31: 13157.735 | K31: 66370.474 | L31: 13768.437 | M31: 11848.902 | N31: 8313.881 | O31: 277764.065
B32: 이행률(%) | C32: =C31/C30*100 -> 155.1788023 | D32: =D31/D30*100 -> 143.9422092 | E32: =E31/E30*100 -> 149.577205 | F32: =F31/F30*100 -> 177.9618987 | G32: =G31/G30*100 -> 177.3669426 | H32: =H31/H30*100 -> 159.9369485 | I32: =I31/I30*100 -> 159.8541562 | J32: =J31/J30*100 -> 153.3178164 | K32: =K31/K30*100 -> 155.1110659 | L32: =L31/L30*100 -> 148.195778 | M32: =M31/M30*100 -> 148.0528496 | N32: =N31/N30*100 -> 166.6307105 | O32: 157.5316804
B34: 차수 | C34: 9 | D34: 9 | E34: 9 | F34: 9 | G34: 9 | H34: 9 | I34: 9 | J34: 9 | K34: 9 | L34: 9 | M34: 9 | N34: 9 | O34: 9
B35: 연 | C35: 2022 | D35: 2023 | E35: 2023 | F35: 2023 | G35: 2023 | H35: 2023 | I35: 2023 | J35: 2023 | K35: 2023 | L35: 2023 | M35: 2023 | N35: 2023 | O35: 합 계
B36: 월 | C36: 12 | D36: 1 | E36: 2 | F36: 3 | G36: 4 | H36: 5 | I36: 6 | J36: 7 | K36: 8 | L36: 9 | M36: 10 | N36: 11
B37: 입찰량(MWh) | C37: 81310.9 | D37: 68484.2 | O37: =SUM(C37:N37) -> 149795.1
B38: 낙찰량(MWh) | C38: 29013.756 | D38: 23218.698 | O38: =SUM(C38:N38) -> 52232.454
B39: 감축량(MWh) | C39: 43360.948 | D39: 34433.662 | O39: 77794.61
B40: 이행률(%) | C40: =C39/C38*100 -> 149.4496197 | D40: =D39/D38*100 -> 148.3014336 | O40: =O39/O38*100 -> 148.9392208

Sheet 월별 정산금 지급 실적
B2: ㅇ 정산금 지급 실적(백만원)
B3: 차수 | C3: 7 | D3: 7 | E3: 7 | F3: 7 | G3: 7 | H3: 7 | I3: 7 | J3: 7 | K3: 7 | L3: 7 | M3: 7 | N3: 7 | O3: 7
B4: 연 | C4: 2020 | D4: 2021 | E4: 2021 | F4: 2021 | G4: 2021 | H4: 2021 | I4: 2021 | J4: 2021 | K4: 2021 | L4: 2021 | M4: 2021 | N4: 2021 | O4: 합계
B5: 월 | C5: 12 | D5: 1 | E5: 2 | F5: 3 | G5: 4 | H5: 5 | I5: 6 | J5: 7 | K5: 8 | L5: 9 | M5: 10 | N5: 11
B6: 실적정산금 | C6: 2784.240113 | D6: 1142.43547 | E6: 941.515301 | F6: 1095.922435 | G6: 2081.810155 | H6: 2498.335704 | I6: 3347.948595 | J6: 3186.965553 | K6: 2641.880696 | L6: 3505.934769 | M6: 4375.483989 | N6: 1483.145393 | O6: =SUM(C6:N6) -> 29085.61817
B7: 기본정산금 | C7: 19870.43902 | D7: 22121.27028 | E7: 25662.72903 | F7: 3973.902404 | G7: 2340.713022 | H7: 15846.03114 | I7: 4809.96723 | J7: 18647.41548 | K7: 54852.2748 | L7: 7242.229227 | M7: 2235.320741 | N7: 19226.29421 | O7: =SUM(C7:N7) -> 196828.5866
B8: 합 계 | C8: 22654.67914 | D8: 23263.70575 | E8: 26604.24433 | F8: 5069.824839 | G8: 4422.523177 | H8: 18344.36685 | I8: 8157.915825 | J8: 21834.38104 | K8: 57494.15549 | L8: 10748.164 | M8: 6610.80473 | N8: 20709.4396 | O8: 225914.2048
B10: 차수 | C10: 8 | D10: 8 | E10: 8 | F10: 8 | G10: 8 | H10: 8 | I10: 8 | J10: 8 | K10: 8 | L10: 8 | M10: 8 | N10: 8 | O10: 8
B11: 연 | C11: 2021 | D11: 2022 | E11: 2022 | F11: 2022 | G11: 2022 | H11: 2022 | I11: 2022 | J11: 2022 | K11: 2022 | L11: 2022 | M11: 2022 | N11: 2022 | O11: 합계
B12: 월 | C12: 12 | D12: 1 | E12: 2 | F12: 3 | G12: 4 | H12: 5 | I12: 6 | J12: 7 | K12: 8 | L12: 9 | M12: 10 | N12: 11
B13: 실적정산금 | C13: 3617.452594 | D13: 1072.613271 | E13: 2451.64611 | F13: 2489.953869 | G13: 1155.672204 | H13: 3851.597247 | I13: 3629.638124 | J13: 1400.173372 | K13: 9399.752738 | L13: 2397.523784 | M13: 2203.438137 | N13: 1362.309827 | O13: =SUM(C13:N13) -> 35031.77128
B14: 기본정산금 | C14: 24180.57479 | D14: 20924.32325 | E14: 20043.79576 | F14: 3403.307735 | G14: 2155.491933 | H14: 12695.76373 | I14: 4544.973612 | J14: 21344.48762 | K14: 60532.67372 | L14: 9305.066576 | M14: 2389.289592 | N14: 25228.30327 | O14: =SUM(C14:N14) -> 206748.0516
B15: 합 계 | C15: 27798.02738 | D15: 21996.93652 | E15: 22495.44187 | F15: 5893.261604 | G15: 3311.164137 | H15: 16547.36097 | I15: 8174.611736 | J15: 22744.661 | K15: 69932.42646 | L15: 11702.59036 | M15: 4592.727729 | N15: 26590.6131 | O15: 241779.8229
B17: 차수 | C17: 9 | D17: 9 | E17: 9 | F17: 9 | G17: 9 | H17: 9 | I17: 9 | J17: 9 | K17: 9 | L17: 9 | M17: 9 | N17: 9 | O17: 9
B18: 연 | C18: 2022 | D18: 2023 | E18: 2023 | F18: 2023 | G18: 2023 | H18: 2023 | I18: 2023 | J18: 2023 | K18: 2023 | L18: 2023 | M18: 2023 | N18: 2023 | O18: 합계
B19: 월 | C19: 12 | D19: 1 | E19: 2 | F19: 3 | G19: 4 | H19: 5 | I19: 6 | J19: 7 | K19: 8 | L19: 9 | M19: 10 | N19: 11
B20: 실적정산금 | C20: 9782.968658 | D20: 6283.224091 | O20: =SUM(C20:N20) -> 16066.19275
B21: 기본정산금 | C21: 19078.11343 | D21: 13022.63509 | O21: =SUM(C21:N21) -> 32100.74851
B22: 합 계 | C22: 28844.60742 | D22: 19305.85918 | O22: 48150.4666
B24: ㅇ 실적정산금 지급 실적(백만원)
B25: 차수 | C25: 7 | D25: 7 | E25: 7 | F25: 7 | G25: 7 | H25: 7 | I25: 7 | J25: 7 | K25: 7 | L25: 7 | M25: 7 | N25: 7 | O25: 7
B26: 연 | C26: 2020 | D26: 2021 | E26: 2021 | F26: 2021 | G26: 2021 | H26: 2021 | I26: 2021 | J26: 2021 | K26: 2021 | L26: 2021 | M26: 2021 | N26: 2021 | O26: 합계
B27: 월 | C27: 12 | D27: 1 | E27: 2 | F27: 3 | G27: 4 | H27: 5 | I27: 6 | J27: 7 | K27: 8 | L27: 9 | M27: 10 | N27: 11
B28: 신뢰성DR 정산금 | C28: 377.977399 | D28: 0 | E28: 0 | F28: 0 | G28: 0 | H28: 0 | I28: 474.387182 | J28: 0 | K28: 0 | L28: 0 | M28: 0 | N28: 0 | O28: =SUM(C28:N28) -> 852.364581
B29: 자발적DR 정산금 | C29: 2422.907683 | D29: 1158.627653 | E29: 954.065642 | F29: 1105.433972 | G29: 2100.581126 | H29: 2521.589198 | I29: 2900.247883 | J29: 3209.246981 | K29: 2676.908295 | L29: 3530.528151 | M29: 4392.481254 | N29: 1492.145185 | O29: =SUM(C29:N29) -> 28464.76302
B30: 위약금 | C30: 16.644969 | D30: 16.192183 | E30: 12.550341 | F30: 9.511537 | G30: 18.770971 | H30: 23.253494 | I30: 26.68647 | J30: 22.281428 | K30: 35.027599 | L30: 24.593382 | M30: 16.997265 | N30: 8.999792 | O30: 231.509431
B31: 합 계 | C31: 2784.240113 | D31: 1142.43547 | E31: 941.515301 | F31: 1095.922435 | G31: 2081.810155 | H31: 2498.335704 | I31: 3347.948595 | J31: 3186.965553 | K31: 2641.880696 | L31: 3505.934769 | M31: 4375.483989 | N31: 1483.145393 | O31: 29085.61817
B33: 차수 | C33: 8 | D33: 8 | E33: 8 | F33: 8 | G33: 8 | H33: 8 | I33: 8 | J33: 8 | K33: 8 | L33: 8 | M33: 8 | N33: 8 | O33: 8
B34: 연 | C34: 2021 | D34: 2022 | E34: 2022 | F34: 2022 | G34: 2022 | H34: 2022 | I34: 2022 | J34: 2022 | K34: 2022 | L34: 2022 | M34: 2022 | N34: 2022 | O34: 합계
B35: 월 | C35: 12 | D35: 1 | E35: 2 | F35: 3 | G35: 4 | H35: 5 | I35: 6 | J35: 7 | K35: 8 | L35: 9 | M35: 10 | N35: 11
B36: 신뢰성DR 정산금 | C36: 796.32736 | D36: 0 | E36: 0 | F36: 0 | G36: 0 | H36: 0 | I36: 774.105219 | J36: 0 | K36: 0 | L36: 0 | M36: 0 | N36: 0 | O36: =SUM(C36:N36) -> 1570.432579
B37: 자발적DR 정산금 | C37: 2835.207834 | D37: 1084.55356 | E37: 2456.793384 | F37: 2502.508436 | G37: 1158.468953 | H37: 3870.480626 | I37: 2876.543882 | J37: 1401.361775 | K37: 9440.378368 | L37: 2413.724882 | M37: 2229.439103 | N37: 1370.425871 | O37: =SUM(C37:N37) -> 33639.88667
B38: 위약금 | C38: 14.0826 | D38: 11.940289 | E38: 5.147274 | F38: 12.554567 | G38: 2.796749 | H38: 18.883379 | I38: 21.010977 | J38: 1.188403 | K38: 40.62563 | L38: 16.201098 | M38: 26.000966 | N38: 8.116044 | O38: 178.547976
B39: 합 계 | C39: 3617.452594 | D39: 1072.613271 | E39: 2451.64611 | F39: 2489.953869 | G39: 1155.672204 | H39: 3851.597247 | I39: 3629.638124 | J39: 1400.173372 | K39: 9399.752738 | L39: 2397.523784 | M39: 2203.438137 | N39: 1362.309827 | O39: 35031.77128
B41: 차수 | C41: 9 | D41: 9 | E41: 9 | F41: 9 | G41: 9 | H41: 9 | I41: 9 | J41: 9 | K41: 9 | L41: 9 | M41: 9 | N41: 9 | O41: 9
B42: 연 | C42: 2022 | D42: 2023 | E42: 2023 | F42: 2023 | G42: 2023 | H42: 2023 | I42: 2023 | J42: 2023 | K42: 2023 | L42: 2023 | M42: 2023 | N42: 2023 | O42: 합계
B43: 월 | C43: 12 | D43: 1 | E43: 2 | F43: 3 | G43: 4 | H43: 5 | I43: 6 | J43: 7 | K43: 8 | L43: 9 | M43: 10 | N43: 11
B44: 신뢰성DR 정산금 | C44: 1522.064798 | D44: 0 | O44: =SUM(C44:N44) -> 1522.064798
B45: 자발적DR 정산금 | C45: 8322.932966 | D45: 6320.839568 | O45: =SUM(C45:N45) -> 14643.77253
B46: 위약금 | C46: 62.029106 | D46: 37.615477 | O46: 99.644583
B47: 합 계 | C47: 9782.968658 | D47: 6283.224091 | O47: 16066.19275
B49: ㅇ 기본정산금 지급 실적(백만원)
B50: 차수 | C50: 7 | D50: 7 | E50: 7 | F50: 7 | G50: 7 | H50: 7 | I50: 7 | J50: 7 | K50: 7 | L50: 7 | M50: 7 | N50: 7 | O50: 7
B51: 연 | C51: 2020 | D51: 2021 | E51: 2021 | F51: 2021 | G51: 2021 | H51: 2021 | I51: 2021 | J51: 2021 | K51: 2021 | L51: 2021 | M51: 2021 | N51: 2021 | O51: 합계
B52: 월 | C52: 12 | D52: 1 | E52: 2 | F52: 3 | G52: 4 | H52: 5 | I52: 6 | J52: 7 | K52: 8 | L52: 9 | M52: 10 | N52: 11
B53: 고정기본정산금 | C53: 19926.43598 | D53: 22121.27028 | E53: 13332.19604 | F53: 3973.902404 | G53: 2340.713022 | H53: 1963.235942 | I53: 4850.505947 | J53: 18647.41548 | K53: 23190.4013 | L53: 7242.229227 | M53: 2235.320741 | N53: 8058.155137 | O53: =SUM(C53:N53) -> 127881.7815
B54: 차등기본정산금 | C54: 0 | D54: 0 | E54: 12330.53299 | F54: 0 | G54: 0 | H54: 13882.7952 | I54: 0 | J54: 0 | K54: 31661.87349 | L54: 0 | M54: 0 | N54: 11168.13907 | O54: =SUM(C54:N54) -> 69043.34075
B55: 위약금 | C55: 55.996952 | D55: 0 | E55: 0 | F55: 0 | G55: 0 | H55: 0 | I55: 40.538717 | J55: 0 | K55: 0 | L55: 0 | M55: 0 | N55: 0 | O55: 96.535669
B56: 합 계 | C56: 19870.43902 | D56: 22121.27028 | E56: 25662.72903 | F56: 3973.902404 | G56: 2340.713022 | H56: 15846.03114 | I56: 4809.96723 | J56: 18647.41548 | K56: 54852.2748 | L56: 7242.229227 | M56: 2235.320741 | N56: 19226.29421 | O56: 196828.5866
B58: 차수 | C58: 8 | D58: 8 | E58: 8 | F58: 8 | G58: 8 | H58: 8 | I58: 8 | J58: 8 | K58: 8 | L58: 8 | M58: 8 | N58: 8 | O58: 8
B59: 연 | C59: 2021 | D59: 2022 | E59: 2022 | F59: 2022 | G59: 2022 | H59: 2022 | I59: 2022 | J59: 2022 | K59: 2022 | L59: 2022 | M59: 2022 | N59: 2022 | O59: 합계
B60: 월 | C60: 12 | D60: 1 | E60: 2 | F60: 3 | G60: 4 | H60: 5 | I60: 6 | J60: 7 | K60: 8 | L60: 9 | M60: 10 | N60: 11
B61: 고정기본정산금 | C61: 24205.53702 | D61: 20924.32325 | E61: 12390.80277 | F61: 3403.307735 | G61: 2155.491933 | H61: 2092.432326 | I61: 4636.003382 | J61: 21344.48762 | K61: 27136.4966 | L61: 9305.066576 | M61: 2389.289592 | N61: 6101.9142 | O61: =SUM(C61:N61) -> 136085.153
B62: 차등기본정산금 | C62: 0 | D62: 0 | E62: 7652.99299 | F62: 0 | G62: 0 | H62: 10603.3314 | I62: 0 | J62: 0 | K62: 33396.17711 | L62: 0 | M62: 0 | N62: 19126.38907 | O62: =SUM(C62:N62) -> 70778.89058
B63: 위약금 | C63: 24.962233 | D63: 0 | E63: 0 | F63: 0 | G63: 0 | H63: 0 | I63: 91.02977 | J63: 0 | K63: 0 | L63: 0 | M63: 0 | N63: 0 | O63: 115.992003
B64: 합 계 | C64: 24180.57479 | D64: 20924.32325 | E64: 20043.79576 | F64: 3403.307735 | G64: 2155.491933 | H64: 12695.76373 | I64: 4544.973612 | J64: 21344.48762 | K64: 60532.67372 | L64: 9305.066576 | M64: 2389.289592 | N64: 25228.30327 | O64: 206748.0516
B66: 차수 | C66: 9 | D66: 9 | E66: 9 | F66: 9 | G66: 9 | H66: 9 | I66: 9 | J66: 9 | K66: 9 | L66: 9 | M66: 9 | N66: 9 | O66: 9
B67: 연 | C67: 2022 | D67: 2023 | E67: 2023 | F67: 2023 | G67: 2023 | H67: 2023 | I67: 2023 | J67: 2023 | K67: 2023 | L67: 2023 | M67: 2023 | N67: 2023 | O67: 합계
B68: 월 | C68: 12 | D68: 1 | E68: 2 | F68: 3 | G68: 4 | H68: 5 | I68: 6 | J68: 7 | K68: 8 | L68: 9 | M68: 10 | N68: 11
B69: 고정기본정산금 | C69: 19224.69088 | D69: 13022.63509 | O69: =SUM(C69:N69) -> 32247.32597
B70: 차등기본정산금 | C70: 0 | D70: 0 | O70: =SUM(C70:N70) -> 0
B71: 위약금 | C71: 146.577459 | D71: 0 | O71: 146.577459
B72: 합 계 | C72: 19078.11343 | D72: 13022.63509 | O72: 32100.74851
